[Event "ChessKid Cup Div-III 2023"]
[Site "Online"]
[Date "2023.05.26"]
[Round "6.5"]
[White "Harikrishna, Pentala"]
[Black "Pichot, Alan"]
[Result "0-1"]
[ECO "E14"]
[WhiteElo "2704"]
[BlackElo "2638"]
[Annotator "TA"]
[PlyCount "114"]
[EventDate "2023.05.21"]
[EventType "k.o."]
[EventCountry "NET"]
[SourceTitle "playchess.com"]
[Source "ChessBase"]
[SourceQuality "1"]
[TimeControl "900+3"]

{[%evp 14,114,0,1,10,0,0,0,0,0,0,0,0,6,0,-32,-19,-18,-24,-72,-72,-73,-84,-80,-39,-46,0,-271,-275,-236,-231,-339,-330,-344,-287,-275,-286,-371,-367,-386,-381,-397,-398,-414,-427,-423,-222,-219,-237,-222,-25,-23,-20,-30,-21,-20,-21,-10,-7,-23,-22,-81,-56,-60,-69,-59,-62,-103,-61,-68,0,-112,-112,-285,-277,-496,-498,-440,-265,-443,-433,-391,-268,-533,-528,-496,-487,-483,-473,-687,-696,-762,-759,-993,-802,-770,-369,-2127,-2258,-12846,0,0,0]} 1. Nf3 {[%emt 0:00:06]} Nf6 {[%emt 0:05:24]} 2. c4 {[%emt 0:00:05]} e6 {[%emt 0:00:05]} 3. e3 {[%emt 0:00:06]} d5 {[%emt 0:00:04]} 4. b3 {[%emt 0:00:05]} b6 {[%emt 0:00:13]} 5. Bb2 {[%emt 0:00:22]} Bd6 {[%emt 0:00:05]} 6. d4 {[%emt 0:00:11]} O-O {[%emt 0:00:05]} 7. Bd3 {[%emt 0:00:05]} Bb7 {[%emt 0:00:07]} 8. O-O {[%emt 0:00:14]} Nbd7 {[%emt 0:00:04] E14: Queen's Indian: Classical Variation (4 e3).} 9. cxd5 {[%emt 0:00:12]} exd5 {[%emt 0:00:05]} 10. Ba3 {[%emt 0:00:03]} c5 {[%emt 0:00:06][%cal Bc7c5,Bc5c4][%mdl 32]} 11. Nc3 {[%emt 0:00:04]} a6 {[%emt 0:00:07] [#]} 12. Rc1 $146 {[%emt 0:00:09]} ({Predecessor:} 12. Bf5 b5 13. dxc5 Nxc5 14. Rc1 g6 15. Ne2 Nfe4 16. Bxe4 dxe4 17. Bxc5 exf3 18. Qxd6 fxe2 {½-½ Shaposhnikov,E (2572)-Ponkratov,P (2622) RUS-ch Higher League 71st 2018 (7)}) 12... Qe7 {[%emt 0:00:06]} 13. Bf5 {[%emt 0:00:13]} Rfd8 {[%emt 0:00:23]} 14. Na4 {[%emt 0:00:38][%cal Oa4b6] [#]} c4 $1 {[%emt 0:00:20]} 15. Bxd6 {[%emt 0:00:21]} Qxd6 {[%emt 0:00:04]} 16. Nc3 {[%emt 0:00:39]} (16. Bxd7 $11 Nxd7 17. Ne5 (17. bxc4 dxc4 18. Nc3 b5 $17)) 16... b5 $1 $17 {[%emt 0:00:06]} 17. bxc4 {[%emt 0:00:04]} dxc4 {[%emt 0:00:38]} 18. e4 {[%emt 0:00:04]} Qf4 {[%emt 0:00:16][%cal Rf6e4]} 19. g3 {[%emt 0:01:00]} Qh6 {[%emt 0:00:05]} (19... Qc7 $15 {is superior.}) 20. a3 $2 {[%emt 0:01:30][%mdl 8192] [#]} (20. d5 $11 {and White is okay.}) 20... Nc5 $1 $19 {[%emt 0:00:19][%mdl 576] Pin} 21. d5 {[%emt 0:02:09]} (21. Ne5 Ncxe4) 21... Nd3 {[%emt 0:00:07]} 22. Rb1 {[%emt 0:00:20]} (22. Qd2 $142 Qh5 23. Nh4) 22... g6 {[%emt 0:00:06]} 23. Nh4 {[%emt 0:00:20]} gxf5 {[%emt 0:00:36]} 24. Nxf5 {[%emt 0:00:05]} Qh5 {[%emt 0:00:09]} (24... Qh3 $2 25. f3 Bc8 26. Ne7+ Kh8 27. Qd2 $19) 25. f3 {[%emt 0:00:09]} Bc8 {[%emt 0:00:12]} ({Not} 25... Nxd5 26. Nxd5 Bxd5 27. Qd2 $17 (27. Ne7+ Kh8 $17)) 26. Ne7+ {[%emt 0:00:17]} Kf8 {[%emt 0:00:23]} 27. Nc6 {[%emt 0:00:11] [#]} Bh3 $1 {[%emt 0:00:10]} 28. Qd2 {[%emt 0:00:14]} (28. Nxd8 Bxf1) 28... Bxf1 {[%emt 0:00:10]} 29. Rxf1 {[%emt 0:00:04] [#]} Ne5 {[%emt 0:00:29]} 30. g4 {[%emt 0:00:32] [#]} Nfxg4 {[%emt 0:00:27]} 31. Nxd8 {[%emt 0:00:04]} Nf6 $2 {[%emt 0:00:59]} (31... Rxd8 $19 32. fxg4 Qh3) 32. Qf4 $11 {[%emt 0:00:34]} Rxd8 {[%emt 0:01:59]} 33. Qxf6 {[%emt 0:00:04]} Qg6+ {[%emt 0:00:10]} 34. Qxg6 {[%emt 0:00:03]} hxg6 {[%emt 0:00:03][%mdl 4096] Endgame KRN-KRN} 35. Kf2 {[%emt 0:00:04]} Ke7 {[%emt 0:00:04] White should prevent ...Rh8.} 36. h4 {[%emt 0:00:41]} Rh8 {[%emt 0:00:05]} 37. Kg3 {[%emt 0:00:04]} (37. Rh1 $1 $11) 37... Kd6 $17 {[%emt 0:00:03] aiming for ...Kc5.} 38. f4 {[%emt 0:00:52]} Nd3 {[%emt 0:00:04] And now ...Kc5 would win.} 39. e5+ {[%emt 0:00:04]} Kc5 $1 {[%emt 0:00:04] White must now prevent ...Kd4.} 40. d6 {[%emt 0:00:03]} Kd4 {[%emt 0:00:07] Inhibits Ne4.} 41. Ne2+ {[%emt 0:00:20]} Kc5 {[%emt 0:00:06] Black is more active.} (41... Ke3 $15 42. Nc3 Kd4 43. Ne2+ Ke3) 42. Rd1 {[%emt 0:00:21] [#]} (42. Nc3 $11) 42... a5 $1 {[%emt 0:00:05][%cal Ba6a5,Ba5b4,Bb4b3,Bb3b2][%mdl 32]} 43. Nc3 $2 {[%emt 0:00:35]} (43. Rh1 $17) 43... b4 $19 {[%emt 0:00:05]} 44. axb4+ {[%emt 0:00:03]} (44. Ne4+ Kc6 45. Nd2) 44... axb4 {[%emt 0:00:03]} 45. Ne4+ {[%emt 0:00:03]} Kc6 {[%emt 0:00:15]} 46. Ng5 $2 {[%emt 0:00:41]} (46. Ra1) 46... Rf8 {[%emt 0:00:05]} 47. Nf3 {[%emt 0:00:20]} Kc5 {[%emt 0:00:08] Inhibits Nd4.} 48. h5 $2 {[%emt 0:00:29]} (48. Nd2) 48... gxh5 {[%emt 0:00:06]} 49. f5 {[%emt 0:00:05]} b3 {[%emt 0:00:08]} 50. d7 {[%emt 0:00:13]} Rg8+ {[%emt 0:00:05]} 51. Kh4 {[%emt 0:00:14]} (51. Kh2 $142 b2 52. e6 fxe6 53. fxe6) 51... b2 {[%emt 0:00:05][%cal Oc4c3] ...c3! would be deadly.} 52. e6 {[%emt 0:00:13]} fxe6 {[%emt 0:00:04]} 53. fxe6 {[%emt 0:00:03]} Kd6 {[%emt 0:00:04]} 54. Nd4 {[%emt 0:00:12]} c3 {[%emt 0:00:24]} 55. Nb5+ $2 {[%emt 0:00:44]} (55. Rg1 Rd8 56. Rb1) 55... Kxe6 {[%emt 0:00:04]} 56. Nxc3 {[%emt 0:00:04] [#]} Rg4+ $2 {[%emt 0:00:04]} ({Black should try} 56... Nf4 $1 $19 {[%csl Gh5][%cal Rg8g4]} 57. Rd6+ {[%mdl 64] Decoy} Kxd6 58. d8=Q+ Rxd8 59. Kg3 Ne2+ {[%mdl 64] Deflection, Promotion} 60. Nxe2 b1=Q 61. Kg2 Qf5 62. Kg3 Rg8+ 63. Kh2 Qf2+ 64. Kh3 Qf3+ 65. Kh4 Qh1#) 57. Kxh5 $11 {[%emt 0:00:04]} Rd4 {[%emt 0:00:03][%mdl 32768] Ingenious play by Pichot!   Weighted Error Value: White=0.70/Black=0.55. Loss on time!?} 0-1

[Event "ChessKid Cup Div-III 2023"]
[Site "Online"]
[Date "2023.05.22"]
[Round "51.1"]
[White "Navara, David"]
[Black "Gadimbayli, Abdulla"]
[Result "1-0"]
[ECO "D08"]
[WhiteElo "2678"]
[BlackElo "2500"]
[Annotator "TA"]
[PlyCount "125"]
[EventDate "2023.05.21"]
[EventType "k.o."]
[EventCountry "NET"]
[SourceTitle "playchess.com"]
[Source "ChessBase"]
[SourceQuality "1"]
[TimeControl "900+3"]

{[%evp 9,125,64,77,75,78,74,81,72,66,60,60,54,58,62,52,56,72,60,60,70,57,56,53,50,90,91,90,90,90,89,89,83,76,74,103,91,91,67,91,0,0,0,0,0,0,0,9,7,12,8,9,10,11,0,19,12,37,37,36,0,31,0,0,0,0,0,0,0,0,0,0,0,43,0,0,0,0,0,0,0,14,15,15,15,16,16,1348,1233,12829,7602,12838,12838,12838,12839,12841,12841,12843,12843,12844,12844,12845,12845,12845,12846,12846,12844,12850,27999,27999,27999,27999,27999,27999,27999,27999,27999,27999,27999]} 1. d4 {[%emt 0:00:03]} d5 {[%emt 0:00:06]} 2. c4 {[%emt 0:00:02]} e5 {[%emt 0:00:01]} 3. dxe5 {[%emt 0:00:01]} d4 {[%emt 0:00:00]} 4. Nf3 {[%emt 0:00:01]} Nc6 {[%emt 0:00:01]} 5. a3 {[%emt 0:00:02]} Nge7 {[%emt 0:00:02][%cal Bg8e7,Be7g6,Bg6e5,Be5c4][%mdl 32]} 6. b4 {[%emt 0:00:01][%cal Bb2b4,Bb4b5][%mdl 32] D08: Albin Counter Gambit.} Ng6 {[%emt 0:00:01] [#]} 7. Bb2 $1 {[%emt 0:00:01]} a5 {[%emt 0:00:01]} 8. b5 {[%emt 0:00:01] White is better.} Ncxe5 {[%emt 0:00:01]} 9. Nxe5 {[%emt 0:00:01]} Nxe5 {[%emt 0:00:00]} 10. Bxd4 {[%emt 0:00:01]} Nxc4 {[%emt 0:00:03]} 11. e3 {[%emt 0:00:00]} Be6 {[%emt 0:00:01]} 12. Be2 {[%emt 0:00:08]} Be7 {[%emt 0:00:09]} 13. Qc2 {[%emt 0:00:28]} Nd6 {[%emt 0:00:08]} 14. Nc3 {[%emt 0:00:54]} O-O {[%emt 0:00:22]} 15. O-O {[%emt 0:00:14]} Re8 {[%emt 0:00:39] [#]} 16. Rad1 $146 {[%emt 0:00:23]} ({Predecessor:} 16. Rfd1 Bf8 17. a4 Bf5 18. Bd3 Bxd3 19. Qxd3 Qg5 20. Rac1 Rac8 21. Ne2 Nf5 22. Bc3 {½-½ Lins,T (2487)-Remis Fernandez,J (2408) W-ch37 sf11 email 2013}) 16... Bf6 {[%emt 0:03:00]} 17. Bxf6 {[%emt 0:00:02]} Qxf6 {[%emt 0:00:00]} 18. Nd5 {[%emt 0:00:01]} Bxd5 {[%emt 0:00:10]} 19. Rxd5 {[%emt 0:00:00]} Re7 {[%emt 0:00:30]} 20. Rc5 {[%emt 0:00:28]} Ne8 {[%emt 0:02:48]} 21. Rd1 {[%emt 0:00:04] Dodges Rd8. Black is weak on the light squares} g6 {[%emt 0:00:06]} 22. Bf3 {[%emt 0:00:10]} Rb8 {[%emt 0:00:04]} 23. Rcd5 {[%emt 0:00:18] White has more active pieces.} b6 {[%emt 0:00:17]} 24. Rd7 {[%emt 0:03:19]} ({Better is} 24. a4 $16) 24... Rxd7 $11 {[%emt 0:00:38]} 25. Rxd7 {[%emt 0:00:00]} Rd8 {[%emt 0:00:21]} 26. Rxd8 {[%emt 0:00:16]} Qxd8 {[%emt 0:00:00][%mdl 4096] Endgame KQB-KQN} 27. Bc6 {[%emt 0:00:04]} Nd6 {[%emt 0:00:25]} 28. g3 {[%emt 0:00:04]} Qf6 {[%emt 0:00:04] [#] ...Qa1+ is the strong threat.} 29. Kg2 {[%emt 0:00:07]} Qe5 {[%emt 0:00:40]} 30. a4 {[%emt 0:00:01]} Kg7 {[%emt 0:00:25]} 31. Qb3 {[%emt 0:00:17]} Qc5 {[%emt 0:00:30]} 32. Bd5 {[%emt 0:00:37]} h5 {[%emt 0:00:45]} 33. Qb2+ {[%emt 0:00:21]} f6 {[%emt 0:00:03]} 34. Ba2 {[%emt 0:00:16]} Qb4 {[%emt 0:00:23]} 35. Qc2 {[%emt 0:00:03]} Qe4+ {[%emt 0:00:02]} 36. Qxe4 {[%emt 0:00:01]} Nxe4 {[%emt 0:00:00] KB-KN} 37. Bb3 {[%emt 0:00:05]} f5 {[%emt 0:00:11]} 38. h4 {[%emt 0:00:51]} Kf6 {[%emt 0:00:02]} 39. f3 {[%emt 0:00:01]} Nc5 {[%emt 0:00:44]} 40. Bc2 {[%emt 0:00:02]} Nd7 {[%emt 0:00:00]} 41. Kf2 {[%emt 0:00:11]} Nc5 {[%emt 0:00:55]} 42. g4 {[%emt 0:00:34]} fxg4 {[%emt 0:00:21]} 43. fxg4 {[%emt 0:00:00]} hxg4 {[%emt 0:00:33]} 44. Kg3 {[%emt 0:00:01]} Nd7 {[%emt 0:00:00]} 45. Kxg4 {[%emt 0:00:05]} Ne5+ {[%emt 0:00:01]} 46. Kf4 {[%emt 0:00:00]} Nf7 {[%emt 0:00:10]} 47. Ke4 {[%emt 0:02:45] Black must now prevent Bb3.} Nh6 $2 {[%emt 0:01:04][%mdl 8192] Loses the game.} (47... g5 $11 48. h5 Ne5) 48. Kd5 $18 {[%emt 0:00:20] And now Kc6 would win.} Ng4 {[%emt 0:00:01]} 49. Kc6 {[%emt 0:00:01]} Nxe3 {[%emt 0:00:03]} 50. Bb3 {[%emt 0:00:05]} Nf5 {[%emt 0:00:19]} 51. Kxc7 {[%emt 0:00:01]} Nxh4 {[%emt 0:00:01]} 52. Kxb6 {[%emt 0:00:00]} Nf5 {[%emt 0:00:00]} 53. Kxa5 {[%emt 0:00:48]} Ke5 {[%emt 0:00:11]} 54. Bc2 {[%emt 0:00:36]} Ne7 {[%emt 0:00:15]} 55. b6 {[%emt 0:00:44]} Kd6 {[%emt 0:00:03]} 56. Be4 {[%emt 0:00:11]} g5 {[%emt 0:00:01]} 57. Bf3 {[%emt 0:00:01]} g4 {[%emt 0:00:07]} 58. Bxg4 {[%emt 0:00:05]} Nc6+ {[%emt 0:00:01] White mates.} 59. Kb5 {[%emt 0:00:08]} Nd4+ {[%emt 0:00:01]} 60. Ka6 {[%emt 0:00:04]} Nc6 {[%emt 0:00:01]} 61. Bf3 {[%emt 0:00:06]} Nb8+ {[%emt 0:00:04]} 62. Kb5 {[%emt 0:00:03]} Nd7 {[%emt 0:00:01]} 63. a5 {[%emt 0:00:01] Weighted Error Value: White=0.07 (flawless) /Black=0.08 (flawless)} 1-0

[Event "ChessKid Cup Div-III 2023"]
[Site "Online"]
[Date "2023.05.22"]
[Round "51.1"]
[White "Iturrizaga Bonelli, Eduardo"]
[Black "Donchenko, Alexander"]
[Result "0-1"]
[ECO "E11"]
[WhiteElo "2637"]
[BlackElo "2669"]
[Annotator "TA"]
[PlyCount "96"]
[EventDate "2023.05.21"]
[EventType "k.o."]
[EventCountry "NET"]
[SourceTitle "playchess.com"]
[Source "ChessBase"]
[SourceQuality "1"]
[TimeControl "900+3"]

{[%evp 13,96,12,2,0,0,0,0,-5,-2,0,-6,0,-6,-21,-33,-32,-35,-52,-54,-86,-58,-108,0,-91,-60,-83,-19,-9,0,-145,-133,-255,-251,-249,-246,-262,-259,-300,-306,-310,-311,-606,-604,-565,-312,-314,-299,-701,-254,-252,-251,-231,-231,-379,-357,-420,-346,-474,-473,-473,-450,-445,-430,-481,-466,-938,-762,-1679,-1190,-1660,-596,-546,0,-3054,-2694,-1765,-1662,-5608,-5695,-29966,-29954,-29967,-29967,-29978,-29979]} 1. Nf3 {[%emt 0:00:05]} Nf6 {[%emt 0:00:08]} 2. c4 {[%emt 0:00:01]} e6 {[%emt 0:00:01]} 3. g3 {[%emt 0:00:01]} d5 {[%emt 0:00:05]} 4. d4 {[%emt 0:00:01]} Bb4+ {[%emt 0:00:06]} 5. Bd2 {[%emt 0:00:05]} Be7 {[%emt 0:00:01]} 6. Bg2 {[%emt 0:00:01]} O-O {[%emt 0:00:01]} 7. O-O {[%emt 0:00:02]} Nbd7 {[%emt 0:00:02]} 8. Bc3 {[%emt 0:00:08] E11: Bogo-Indian.} b6 {[%emt 0:00:04]} 9. Nbd2 {[%emt 0:00:06]} Bb7 {[%emt 0:00:03]} 10. Rc1 {[%emt 0:00:01] The position is equal.} c5 {[%emt 0:00:16]} 11. b3 {[%emt 0:00:25]} Rc8 {[%emt 0:00:20]} 12. Bb2 {[%emt 0:00:05]} Rc7 {[%emt 0:00:28] [#]} 13. a3 $146 {[%emt 0:00:33]} ({Predecessor:} 13. Re1 Qa8 14. dxc5 Bxc5 15. Ne5 Be7 16. e3 Rfc8 17. Nxd7 Rxd7 18. Qe2 dxc4 19. Bxb7 Qxb7 20. Nxc4 {1-0 Speitel,S (1615)-Slawtschew,S (1698) GER-chT U16 Burg Stargard 2002 (1.3)}) 13... dxc4 {[%emt 0:00:39]} 14. Nxc4 {[%emt 0:00:09]} Qa8 {[%emt 0:00:05]} 15. Qd2 {[%emt 0:01:41]} Rfc8 {[%emt 0:00:22]} 16. Qf4 {[%emt 0:00:31]} Nd5 $36 {[%emt 0:00:53][%mdl 2048] White is under pressure.} 17. Qg4 {[%emt 0:00:04] [#]} (17. Qd2 $1 $15) 17... N5f6 {[%emt 0:00:28]} ({Black should try} 17... b5 $1 $17 {[%cal Rb5c4]} 18. Nce5 (18. dxc5 $2 N5f6 $19) 18... c4 19. Nxd7 c3) 18. Qh3 {[%emt 0:00:43]} (18. Qf4 $1 $11 {remains equal.}) 18... h6 {[%emt 0:01:15]} (18... Ne4 {looks sharper.} 19. dxc5 Rxc5 20. Bd4 Rd5) 19. Rfd1 {[%emt 0:01:48]} Be4 {[%emt 0:00:31]} (19... b5 $17 20. Na5 Bd5 21. dxc5 Nxc5) 20. dxc5 $11 {[%emt 0:00:24]} Rxc5 {[%emt 0:01:18]} 21. Qh4 {[%emt 0:01:33] [#] Black continues to play with concentration.} (21. Nfd2 $11 Bb7 22. Bxb7 Qxb7 23. Qg2 Qxg2+ 24. Kxg2) 21... b5 $1 $17 {[%emt 0:01:04]} 22. Rxd7 {[%emt 0:04:09]} (22. Ncd2 $17) 22... Nxd7 $19 {[%emt 0:01:29]} 23. Qxe7 {[%emt 0:00:03]} bxc4 {[%emt 0:00:41]} ({Worse is} 23... Qd5 24. Ne1 Bxg2 25. Ne3 (25. Nd6 Rf8 $17)) 24. Qxd7 {[%emt 0:01:17] Black must now prevent Qd4.} c3 {[%emt 0:00:04]} 25. Rxc3 {[%emt 0:01:02]} Rxc3 {[%emt 0:00:42]} 26. Bxc3 {[%emt 0:00:00]} Rxc3 {[%emt 0:00:09]} 27. Ne5 $2 {[%emt 0:00:01]} (27. h3 Bc6 28. Qe7) 27... Rc1+ {[%emt 0:00:38]} ({Not} 27... Bxg2 28. Qxf7+ Kh7 29. Qg6+ Kh8 30. Nf7+ Kg8 31. Nxh6+ Kh8 32. Nf7+ Kg8 33. Nh6+ Kh8 34. Nf7+ Kg8 35. Nh6+ $11) 28. Bf1 {[%emt 0:00:01]} Qd5 {[%emt 0:01:22]} 29. Qxf7+ {[%emt 0:00:58]} Kh7 {[%emt 0:00:02] Active counter play!} 30. Nf3 $2 {[%emt 0:00:05]} (30. f3 Qxe5 31. fxe4) 30... Bxf3 $2 {[%emt 0:02:03]} ({And not} 30... Qxb3 31. Ng5+ hxg5 32. Qh5+ Kg8 33. Qe8+ Kh7 34. Qh5+ Kg8 35. Qe8+ Kh7 36. Qh5+ $11) (30... Bg6 {( -> ...Qd1)} 31. Qf4 Qd1) 31. Qxf3 {[%emt 0:00:00]} Qxf3 {[%emt 0:00:02]} 32. exf3 {[%emt 0:00:00][%mdl 4096] Endgame KR-KB} Rb1 {[%emt 0:00:02]} 33. b4 {[%emt 0:00:18]} (33. f4 $142) 33... Ra1 {[%emt 0:00:07]} 34. Kg2 {[%emt 0:00:03]} Kg6 {[%emt 0:00:08]} 35. f4 {[%emt 0:00:06]} Rxa3 {[%emt 0:00:02]} 36. b5 {[%emt 0:00:04]} Kf6 {[%emt 0:00:03]} 37. Be2 {[%emt 0:00:02]} Ke7 {[%emt 0:00:03]} 38. h4 {[%emt 0:00:04]} Kd6 {[%emt 0:00:04]} 39. g4 {[%emt 0:00:03]} (39. Kf1 $142 Ra2 40. Bd3) 39... Kc5 {[%emt 0:00:06] Hoping for ...Rb3.} 40. g5 {[%emt 0:00:04]} Rb3 {[%emt 0:00:11]} 41. Bg4 {[%emt 0:00:12]} Kd5 {[%emt 0:00:13]} (41... Rxb5 $142 42. Bxe6 a5) 42. Be2 {[%emt 0:00:02]} Kc5 {[%emt 0:00:17]} (42... Kd4 $142 43. gxh6 gxh6) 43. Bg4 {[%emt 0:00:01]} Rxb5 {[%emt 0:00:06] ...a5 would be deadly.} 44. Bxe6 {[%emt 0:00:01]} a5 {[%emt 0:00:05][%cal Ba7a5,Ba5a4][%mdl 32]} 45. f5 {[%emt 0:00:03]} hxg5 {[%emt 0:00:01]} 46. hxg5 {[%emt 0:00:03]} a4 {[%emt 0:00:04] Black mates.} 47. Kf3 {[%emt 0:00:10]} Kd6 {[%emt 0:00:06]} 48. Ba2 {[%emt 0:00:03]} Rxf5+ {[%emt 0:00:06] Weighted Error Value: White=0.99/Black=0.53} 0-1

[Event "ChessKid Cup Div-III 2023"]
[Site "Online"]
[Date "2023.05.22"]
[Round "51.1"]
[White "Bachmann, Axel"]
[Black "Narayanan, Srinath"]
[Result "1-0"]
[ECO "A13"]
[WhiteElo "2604"]
[BlackElo "2559"]
[Annotator "TA"]
[PlyCount "77"]
[EventDate "2023.05.21"]
[EventType "k.o."]
[EventCountry "NET"]
[SourceTitle "playchess.com"]
[Source "ChessBase"]
[SourceQuality "1"]
[TimeControl "900+3"]

{[%evp 23,77,33,22,24,43,40,66,31,31,25,32,17,23,27,36,37,37,0,5,3,6,0,0,0,1,0,57,57,107,22,117,108,379,-1,377,372,370,367,531,517,476,202,390,400,368,368,366,366,304,283,1044,980,29987,29988,29996,29997]} 1. Nf3 {[%emt 0:00:06]} d5 {[%emt 0:00:05]} 2. e3 {[%emt 0:00:02]} Nf6 {[%emt 0:00:05]} 3. c4 {[%emt 0:00:01]} e6 {[%emt 0:00:03]} 4. b3 {[%emt 0:00:01]} c5 {[%emt 0:00:04]} 5. Bb2 {[%emt 0:00:02]} Nc6 {[%emt 0:00:01]} 6. cxd5 {[%emt 0:00:03]} exd5 {[%emt 0:00:01]} 7. Bb5 {[%emt 0:00:05]} Be7 {[%emt 0:00:15]} 8. O-O {[%emt 0:00:10]} O-O {[%emt 0:00:02]} 9. d4 {[%emt 0:00:01]} Bg4 {[%emt 0:00:11]} 10. Be2 {[%emt 0:00:17]} Rc8 {[%emt 0:00:20]} 11. dxc5 {[%emt 0:00:06]} Bxc5 {[%emt 0:00:00]} 12. Nc3 {[%emt 0:00:02]} Re8 {[%emt 0:01:22]} 13. h3 {[%emt 0:00:19] A13: English Opening: 1...e6.} Bh5 {[%emt 0:00:02]} 14. Rc1 {[%emt 0:00:08][%cal Oc3d5]} Bb6 {[%emt 0:00:37]} 15. Nh4 {[%emt 0:00:15] White is slightly better.} Bxe2 {[%emt 0:02:04]} 16. Nxe2 {[%emt 0:00:00]} Ne4 {[%emt 0:00:01]} 17. Nf5 {[%emt 0:00:22] [#]} Qg5 $146 {[%emt 0:01:02]} ({Predecessor:} 17... f6 18. Nf4 Ba5 19. Qg4 Ng5 20. Nxg7 Ne5 21. Bxe5 Rxc1 22. Rxc1 Rxe5 23. Rc8 Kxg7 24. Rxd8 Bxd8 25. h4 f5 26. Qg3 {1-0 Mayeregger,A (2121)-Iniyan,P (2506) Titled Tuesday intern op 22nd Dec blitz 2020 (1)}) 18. Nfd4 {[%emt 0:06:24]} (18. Qxd5 $2 {loses.} Rcd8 19. Qb5 g6 $19) (18. Nxg7 Nxf2 19. Rxf2 Qxe3 $17) 18... Bc7 {[%emt 0:01:12]} 19. Nf3 {[%emt 0:00:28]} Qh5 {[%emt 0:00:21]} 20. Nf4 {[%emt 0:00:17]} (20. Qd3 {looks sharper.} a6 21. Rfd1 Rcd8 22. Ned4) 20... Bxf4 {[%emt 0:00:23]} 21. exf4 {[%emt 0:00:00]} Qf5 {[%emt 0:00:01]} 22. b4 {[%emt 0:02:49]} a6 {[%emt 0:01:03]} (22... Nxb4 $2 23. Qd4 f6 24. Qxb4 $18) 23. a4 {[%emt 0:00:01]} Nd6 {[%emt 0:00:02]} 24. Rc5 {[%emt 0:00:38]} Nc4 {[%emt 0:02:20]} (24... Ne7 $11) 25. Rxd5 $14 {[%emt 0:00:06]} Qxf4 {[%emt 0:00:02]} ({Black should play} 25... Nxb2 $14 26. Rxf5 Nxd1 27. Rxd1 f6) 26. Bc1 {[%emt 0:00:10]} ({White should try} 26. Bxg7 $1 $16 Kxg7 27. Rg5+ Kf8 28. Rg4 {[%mdl 64] Skewer, Deflection}) 26... Qe4 {[%emt 0:00:07]} (26... Qf6 $1 $11) 27. Re1 $16 {[%emt 0:00:31]} Qb1 {[%emt 0:02:01][%mdl 8192]} (27... Qg6 $16) 28. Rxe8+ $1 $18 {[%emt 0:00:01]} Rxe8 {[%emt 0:00:01]} 29. b5 {[%emt 0:00:01]} axb5 {[%emt 0:00:27]} 30. axb5 {[%emt 0:00:02]} ({Not} 30. Rxb5 Qe4 $16) 30... Ne7 {[%emt 0:00:19] [#]} (30... Nb6 {was worth a try.}) 31. Rd8 $1 {[%emt 0:00:04][%cal Rd8e8]} Kf8 {[%emt 0:00:35]} 32. Ng5 $40 {[%emt 0:00:12][%mdl 128] Black is in trouble.} (32. Qd7 $142 {[%csl Gd7][%cal Rd8e8]} Qxc1+ 33. Kh2) 32... f6 $2 {[%emt 0:00:36]} (32... h6 $2 33. Nh7+ Qxh7 34. Qd7 $18) (32... Nb6 {was called for.} 33. Nxh7+ Qxh7) 33. Ne6+ {[%emt 0:01:12]} Kf7 {[%emt 0:00:01]} 34. Rxe8 {[%emt 0:00:07]} Kxe8 {[%emt 0:00:00] [#]} 35. Nc7+ $1 {[%emt 0:00:44]} ({Less strong is} 35. Nxg7+ Kf7 $16) 35... Kf7 {[%emt 0:00:15]} 36. Qh5+ {[%emt 0:00:00]} Qg6 $2 {[%emt 0:00:13]} (36... g6 37. Qxh7+ Kf8 38. Qh8+ Ng8 39. Ne6+ Ke7) 37. Qe2 {[%emt 0:00:01]} Ne5 {[%emt 0:00:06]} 38. Qa2+ {[%emt 0:00:08]} Kf8 {[%emt 0:00:05]} 39. Qa8+ {[%emt 0:00:07] Weighted Error Value: White=0.16 (very precise) /Black=0.72} 1-0